bitfinex/quotes_BTCUSD_20250410
["timestamp","ask_amount","ask_price","bid_price","bid_amount"]
[1744272748717,0.4103996,81696.0,81695.0,0.42530682]
[1744272749156,0.42232243,81696.0,81695.0,0.16825382]
[1744272749762,0.66713243,81696.0,81695.0,0.16825382]
[1744272749920,0.66713243,81696.0,81695.0,0.27579382]
[1744272750121,0.67937243,81696.0,81695.0,0.27579382]
[1744272750944,0.66713243,81696.0,81695.0,0.27579382]
[1744272751759,0.42232243,81696.0,81695.0,0.28803382]
[1744272751938,0.42232243,81696.0,81695.0,0.53284682]
[1744272752496,0.4103996,81696.0,81695.0,0.53284682]
[1744272752797,0.4103996,81715.0,81695.0,0.61740682]
[1744272753002,0.4103996,81715.0,81714.0,0.353793]
[1744272753206,0.4103996,81715.0,81714.0,0.62958682]
[1744272755222,0.24472,81726.0,81721.0,0.244732]
[1744272755424,0.24472,81726.0,81722.0,0.12055382]
[1744272755668,0.00960751,81725.0,81724.0,0.256962]
[1744272755878,0.00960751,81725.0,81724.0,0.36527982]
[1744272756079,0.24472,81727.0,81724.0,0.36527982]
[1744272756324,0.00960214,81725.0,81724.0,0.244726]
[1744272756532,0.24472,81727.0,81724.0,0.36527982]
[1744272756762,0.244721,81726.0,81723.0,0.244729]
[1744272756944,0.244721,81726.0,81725.0,0.12055382]
[1744272759408,0.24472,81727.0,81725.0,0.12055382]
[1744272759617,0.4226346,81728.0,81725.0,0.12055382]
[1744272759618,0.4103996,81728.0,81727.0,0.256952]
[1744272759774,0.4103996,81728.0,81727.0,0.37750582]
[1744272760207,0.4103996,81728.0,81727.0,0.42520582]
[1744272760814,0.4103996,81728.0,81727.0,0.47110582]
[1744272761010,0.0001686,81733.0,81732.0,0.256937]
[1744272761218,0.0001686,81733.0,81732.0,0.53513754]
[1744272761539,0.0001686,81733.0,81732.0,0.53269082]
[1744272763170,0.0001686,81733.0,81732.0,0.27575382]
[1744272763466,0.0099956,81733.0,81732.0,0.37749082]
[1744272763668,0.0001686,81733.0,81732.0,0.53265082]
[1744272765196,0.01003097,81733.0,81732.0,0.53265082]
[1744272765395,0.01003097,81733.0,81732.0,0.27571382]
[1744272765572,0.26696397,81733.0,81732.0,0.12055382]
[1744272766002,0.596952,81727.0,81726.0,0.15492]
[1744272766203,0.65629693,81727.0,81726.0,0.15492]
[1744272766368,0.60679693,81727.0,81726.0,0.15492]
[1744272769250,0.244753,81715.0,81714.0,0.15492]
[1744272769392,0.6673896,81715.0,81714.0,0.15492]
[1744272769591,0.67724176,81715.0,81714.0,0.15492]
[1744272770185,0.244767,81711.0,81708.0,0.244771]
[1744272770384,0.25460674,81710.0,81709.0,0.27547382]
[1744272770694,0.00983874,81710.0,81709.0,0.27547382]
[1744272770895,0.244768,81710.0,81709.0,0.27547382]
[1744272771114,0.25460674,81710.0,81709.0,0.27547382]
[1744272771897,0.00983874,81710.0,81709.0,0.27547382]
[1744272772315,0.00983874,81710.0,81709.0,0.52024482]
[1744272772715,0.244756,81714.0,81711.0,0.244764]
[1744272772921,0.42022725,81713.0,81712.0,0.12055382]
[1744272773128,0.42022725,81713.0,81712.0,0.36531582]
[1744272773350,0.42022725,81713.0,81712.0,0.37755382]
[1744272773749,0.42022725,81713.0,81712.0,0.42275382]
[1744272775817,0.42022725,81713.0,81712.0,0.49233603]
[1744272776030,0.42022725,81713.0,81712.0,0.50449159]
[1744272776221,0.42022725,81713.0,81712.0,0.49233603]
[1744272776595,0.42022725,81713.0,81712.0,0.64725603]
[1744272778816,0.00982765,81713.0,81712.0,0.64725603]
[1744272779052,0.0001686,81733.0,81732.0,0.244702]
[1744272779175,0.0001686,81733.0,81732.0,0.53241082]
[1744272779376,0.01004757,81733.0,81732.0,0.53241082]
[1744272779682,0.01004757,81733.0,81732.0,0.27547382]
[1744272780180,0.01004757,81733.0,81732.0,0.52017582]
[1744272780584,0.01004757,81733.0,81732.0,0.53241082]
[1744272781024,0.01004757,81733.0,81732.0,0.57841082]
[1744272781199,0.01004757,81733.0,81732.0,0.27547382]
[1744272781383,0.25474657,81733.0,81732.0,0.27547382]
[1744272781587,0.25474657,81733.0,81732.0,0.12055382]
[1744272781827,0.26698057,81733.0,81732.0,0.27547382]
[1744272782805,0.26698057,81733.0,81732.0,0.15492]
[1744272783007,0.244717,81727.0,81722.0,0.012236]
[1744272783208,0.244717,81727.0,81714.0,0.15492]
[1744272783209,0.244726,81724.0,81723.0,0.12055382]
[1744272783446,0.26686172,81724.0,81723.0,0.12055382]
[1744272786555,0.012239,81706.0,81700.0,0.0479]
[1744272786776,0.00982241,81705.0,81703.0,0.244788]
[1744272787065,0.257013,81708.0,81702.0,0.12055382]
[1744272787066,0.244778,81707.0,81704.0,0.12055382]
[1744272787215,0.244783,81705.0,81704.0,0.12055382]
[1744272787418,0.012238,81707.0,81704.0,0.12055382]
[1744272787670,0.244759,81713.0,81706.0,0.24478]
[1744272787970,0.244759,81713.0,81707.0,0.36532782]
[1744272787971,0.244771,81709.0,81707.0,0.36532782]
[1744272788183,0.244771,81709.0,81708.0,0.15492]
[1744272788378,0.244771,81709.0,81708.0,0.27547382]
[1744272788574,0.244765,81711.0,81708.0,0.27547382]
[1744272788807,0.244747,81717.0,81714.0,0.244756]
[1744272788924,0.244748,81717.0,81715.0,0.12055382]
[1744272789125,0.012236,81720.0,81715.0,0.12055382]
[1744272789362,0.244742,81719.0,81716.0,0.256986]
[1744272789694,0.244744,81718.0,81717.0,0.12055382]
[1744272789868,0.256981,81718.0,81717.0,0.12055382]
[1744272790073,0.34,81722.0,81718.0,0.244743]
[1744272790257,0.256974,81720.0,81719.0,0.12055382]
[1744272793441,0.256974,81720.0,81719.0,0.27547382]
[1744272794482,0.012238,81712.0,81707.0,1.25932]
[1744272794686,0.244774,81708.0,81707.0,1.25932]
[1744272794909,0.257012,81708.0,81707.0,0.12055382]
[1744272795380,0.26674842,81708.0,81707.0,0.12055382]
[1744272795611,0.00973642,81708.0,81707.0,0.12055382]
[1744272795848,0.257006,81711.0,81707.0,0.36533082]
[1744272796125,0.25450243,81710.0,81708.0,0.12055382]
[1744272796351,0.00973443,81710.0,81709.0,0.244771]
[1744272796551,0.00973443,81710.0,81709.0,0.36532482]
[1744272796706,0.00973443,81710.0,81709.0,0.37756282]
[1744272796909,0.012235,81727.0,81721.0,0.244735]
[1744272797111,0.6551286,81723.0,81721.0,0.27523382]
[1744272797316,0.6551286,81723.0,81722.0,0.12055382]
[1744272797516,0.4103996,81723.0,81722.0,0.12055382]
[1744272797718,0.4103996,81723.0,81722.0,0.37752182]
[1744272797918,0.4103996,81723.0,81722.0,0.12055382]
[1744272799260,0.4103996,81723.0,81722.0,0.37752182]
[1744272801719,0.42017197,81723.0,81722.0,0.37752182]
[1744272805223,0.00977237,81723.0,81722.0,0.37752182]
[1744272805424,0.2448696,81733.0,81729.0,0.244708]
[1744272805626,0.00977705,81732.0,81730.0,0.12055382]
[1744272805909,0.25447905,81732.0,81730.0,0.12055382]
[1744272806059,0.25447905,81732.0,81730.0,0.36526082]
[1744272806693,0.244705,81731.0,81730.0,0.12055382]
[1744272806825,0.25447905,81732.0,81730.0,0.12055382]
[1744272807031,0.244705,81731.0,81730.0,0.12055382]
[1744272807271,0.00983689,81731.0,81730.0,0.27523382]
[1744272807654,0.00983689,81731.0,81730.0,0.51994182]
[1744272807855,0.2571066,81733.0,81730.0,0.51994182]
[1744272808050,0.0098342,81732.0,81730.0,0.51994182]
[1744272808755,0.2545362,81732.0,81730.0,0.27523382]
[1744272808951,0.0098342,81732.0,81730.0,0.51994182]
[1744272809288,0.0098342,81732.0,81730.0,0.27523382]
[1744272809447,0.2545382,81732.0,81730.0,0.27523382]
[1744272809648,0.2545362,81732.0,81730.0,0.27523382]
[1744272810085,0.25694,81731.0,81730.0,0.27523382]
[1744272810732,0.2667745,81731.0,81730.0,0.27523382]
[1744272811616,0.2667745,81731.0,81730.0,0.23702882]
[1744272812934,0.2667745,81731.0,81730.0,0.08234882]
[1744272813168,0.2667745,81731.0,81730.0,0.23702882]
[1744272820827,0.0098345,81731.0,81730.0,0.49397182]
[1744272821017,0.0098345,81731.0,81730.0,0.54217182]
[1744272821260,0.0001686,81733.0,81732.0,0.256937]
[1744272821448,0.0001686,81733.0,81732.0,0.37993755]
[1744272821775,0.0001686,81733.0,81732.0,0.37749082]
[1744272822726,0.0001686,81733.0,81732.0,0.43973167]
[1744272822927,0.0001686,81733.0,81732.0,0.52614426]
[1744272825468,0.0001686,81733.0,81732.0,0.68078426]
[1744272825703,0.0001686,81733.0,81732.0,0.68986278]
[1744272825899,0.0001686,81733.0,81732.0,0.53522278]
[1744272826198,0.0001686,81733.0,81732.0,0.68986278]
[1744272829263,0.0001686,81733.0,81732.0,0.53522278]
[1744272829469,0.0001686,81733.0,81732.0,0.66600341]
[1744272832383,0.0001686,81733.0,81732.0,0.68054426]
[1744272833278,0.0001686,81733.0,81732.0,0.68963188]
[1744272847165,0.0001686,81733.0,81732.0,1.02963188]
[1744272848775,8e-07,81739.0,81738.0,0.256918]
[1744272849000,0.00012819,81739.0,81738.0,0.52817134]
[1744272849218,0.00012819,81739.0,81738.0,0.86572526]
[1744272849987,0.004,81769.0,81738.0,0.86572526]
[1744272849988,5e-07,81758.0,81757.0,0.012231]
[1744272850227,0.004,81769.0,81768.0,0.596823]
[1744272850428,0.00012737,81769.0,81768.0,0.77003026]
[1744272851159,0.00012737,81769.0,81768.0,0.54627767]
[1744272851508,0.00012737,81769.0,81768.0,0.53173682]
[1744272851825,0.00012737,81769.0,81768.0,0.37737682]
[1744272852227,0.00012737,81769.0,81768.0,0.53173682]
[1744272852557,0.00012737,81769.0,81768.0,0.54101611]
[1744272854323,0.00012737,81769.0,81768.0,0.53173682]
[1744272857440,0.00012737,81769.0,81768.0,0.27491382]
[1744272857645,0.00012737,81769.0,81768.0,0.53173682]
[1744272857959,0.00814618,81769.0,81768.0,0.53173682]
[1744272858218,0.00012737,81769.0,81768.0,0.53173682]
[1744272858420,0.00814618,81769.0,81768.0,0.53173682]
[1744272858600,0.00012737,81769.0,81768.0,0.27491382]
[1744272858766,0.00814618,81769.0,81768.0,0.51950782]
[1744272858966,0.00012737,81769.0,81768.0,0.51950782]
[1744272859175,0.00814618,81769.0,81768.0,0.51950782]
[1744272859381,0.00012737,81769.0,81768.0,0.27491382]
[1744272859584,0.26496618,81769.0,81768.0,0.15436]
[1744272860055,0.244624,81758.0,81751.0,0.244639]
[1744272860285,0.26484432,81758.0,81757.0,1.37931382]
[1744272860481,0.26484432,81758.0,81757.0,1.41288]
[1744272861035,0.67524392,81758.0,81757.0,1.41288]
[1744272862052,0.67524392,81758.0,81757.0,1.25876]
[1744272862281,0.67524392,81758.0,81757.0,1.41288]
[1744272863186,0.67524392,81758.0,81757.0,1.43570058]
[1744272864245,0.67524392,81758.0,81757.0,1.41288]
[1744272864614,0.41838892,81758.0,81757.0,1.53343382]
[1744272865001,0.41838892,81758.0,81757.0,1.55625626]
[1744272865533,0.41838892,81758.0,81757.0,1.80088326]
[1744272865737,0.41838892,81758.0,81757.0,1.81311426]
[1744272865880,0.4103996,81758.0,81757.0,1.55625626]
[1744272866085,0.41842662,81758.0,81757.0,1.55625626]
[1744272866287,0.41842662,81758.0,81757.0,1.80088326]
[1744272866552,0.41842662,81758.0,81757.0,1.55625626]
[1744272866709,0.41842662,81758.0,81757.0,1.80088326]
[1744272867106,0.41842662,81758.0,81757.0,1.53343382]
[1744272867444,0.66305062,81758.0,81757.0,1.37931382]
[1744272867646,0.66305062,81758.0,81757.0,1.53343382]
[1744272868205,0.41842662,81758.0,81757.0,1.77806082]
[1744272868411,0.41842662,81758.0,81757.0,1.53343382]
[1744272868931,0.41842662,81758.0,81757.0,1.77806082]
[1744272869128,0.41842662,81758.0,81757.0,1.79029182]
[1744272869592,0.41842662,81758.0,81757.0,1.8131145]
[1744272869794,0.4103996,81758.0,81757.0,1.8131145]
[1744272870226,0.41837027,81758.0,81757.0,1.8131145]
[1744272870849,0.67522527,81758.0,81757.0,1.43570268]
[1744272871215,0.66299427,81758.0,81757.0,1.41288]
[1744272871418,0.41837027,81758.0,81757.0,1.53343382]
[1744272872166,0.41837027,81758.0,81757.0,1.55625806]
[1744272873284,0.66299427,81758.0,81757.0,1.55625806]
[1744272873699,0.67522527,81758.0,81757.0,1.55625806]
[1744272874164,0.43060127,81758.0,81757.0,1.55625806]
[1744272874489,0.43060127,81758.0,81757.0,1.53343382]
[1744272874697,0.41837027,81758.0,81757.0,1.53343382]
[1744272875124,0.41837027,81758.0,81757.0,1.55625976]
[1744272875519,0.41837027,81758.0,81757.0,1.43570594]
[1744272875886,0.4103996,81758.0,81757.0,1.43570594]
[1744272876086,0.4183651,81758.0,81757.0,1.43570594]
[1744272876326,0.4183651,81758.0,81757.0,1.41288]
[1744272876533,0.6672546,81758.0,81757.0,1.41288]
[1744272876989,0.012233,81743.0,81723.0,1.59872]
[1744272877193,0.012233,81743.0,81735.0,0.0003368]
[1744272877194,0.24469,81736.0,81735.0,0.0003368]
[1744272877312,0.244681,81739.0,81738.0,0.15412]
[1744272877512,0.26482953,81739.0,81738.0,0.15412]
[1744272877945,0.67522913,81739.0,81738.0,0.15412]
[1744272878356,0.72432913,81739.0,81738.0,0.15412]
[1744272878997,0.73634659,81739.0,81738.0,0.15412]
[1744272879604,0.67522913,81739.0,81738.0,0.15412]
[1744272880040,0.41831413,81739.0,81738.0,0.15412]
[1744272883183,0.41831413,81739.0,81735.0,0.0003368]
[1744272883339,0.41831413,81739.0,81738.0,0.15416]
[1744272885127,0.43054813,81739.0,81738.0,0.15416]
[1744272885342,0.67522913,81739.0,81738.0,0.15416]
[1744272888176,0.256924,81736.0,81735.0,0.0003368]
[1744272888313,1.17535619,81736.0,81735.0,0.0003368]
[1744272888518,1.06261878,81736.0,81735.0,0.0003368]
[1744272888725,1.11231878,81736.0,81735.0,0.0003368]
[1744272889897,1.25241345,81736.0,81735.0,0.0003368]
[1744272890439,1.2618017,81736.0,81735.0,0.0003368]
[1744272891155,1.3906017,81736.0,81735.0,0.0003368]
[1744272891315,1.7352717,81736.0,81735.0,0.0003368]
[1744272893354,0.012236,81725.0,81705.0,0.0003372]
[1744272893539,1.0070218,81725.0,81724.0,0.00046419]
[1744272893740,1.0146415,81725.0,81724.0,0.00046419]
[1744272894161,1.0635415,81725.0,81724.0,0.00046419]
[1744272894820,1.4635415,81725.0,81724.0,0.00046419]
[1744272899322,0.012238,81712.0,81705.0,0.1542972]
[1744272899654,0.01986837,81712.0,81705.0,0.1542972]
[1744272899873,0.26463037,81712.0,81705.0,0.3990792]
[1744272900062,0.26463037,81712.0,81707.0,0.244774]
[1744272900484,0.26463037,81712.0,81710.0,0.244767]
[1744272900485,0.00763037,81712.0,81710.0,0.244767]
[1744272900690,0.00763037,81712.0,81708.0,0.012238]
[1744272900895,0.24476,81713.0,81708.0,0.257006]
[1744272901015,0.257,81712.0,81707.0,0.244777]
[1744272901218,0.2645269,81712.0,81708.0,0.244771]
[1744272901669,0.2645269,81712.0,81711.0,0.15796]
[1744272902331,0.0075269,81712.0,81711.0,0.15796]
[1744272902965,0.2522889,81712.0,81711.0,0.15796]
[1744272903449,0.2645269,81712.0,81711.0,0.15796]
[1744272904522,0.0075269,81712.0,81711.0,0.15796]
[1744272904820,0.0075269,81712.0,81711.0,0.53551682]
[1744272905224,0.65434261,81718.0,81714.0,0.244755]
[1744272905401,0.244748,81717.0,81714.0,0.36530882]
[1744272905720,0.24475,81716.0,81714.0,0.36530882]
[1744272905921,0.00756733,81715.0,81714.0,0.36530882]
[1744272906160,0.00756733,81715.0,81714.0,0.42474582]
[1744272906563,0.40959861,81718.0,81717.0,0.256984]
[1744272906770,0.40959861,81718.0,81717.0,0.37753782]
[1744272907089,0.65434261,81718.0,81717.0,0.12055382]
[1744272907287,0.65434261,81718.0,81711.0,0.15796]
[1744272907288,0.012237,81715.0,81711.0,0.15796]
[1744272907492,0.257,81712.0,81711.0,0.004]
[1744272907899,1.00659861,81712.0,81711.0,0.004]
[1744272908314,1.05599861,81712.0,81711.0,0.004]
[1744272909623,1.45599861,81712.0,81711.0,0.004]
[1744272911011,1.40659861,81712.0,81711.0,0.004]
[1744272911169,1.00659861,81712.0,81711.0,0.004]
[1744272911626,0.40959861,81712.0,81711.0,0.248765]
[1744272911947,0.40959861,81712.0,81711.0,0.53555682]
[1744272912811,0.40959861,81712.0,81711.0,0.27855382]
[1744272913667,0.40959861,81712.0,81711.0,0.52331882]
[1744272914013,0.40959861,81712.0,81711.0,0.53555682]
[1744272914755,0.40959861,81712.0,81711.0,0.38155682]
[1744272914917,0.40959861,81712.0,81711.0,0.53555682]
[1744272915321,0.40959861,81712.0,81711.0,0.58415682]
[1744272915893,0.40959861,81712.0,81711.0,0.59869767]
[1744272917895,0.40959861,81712.0,81711.0,0.58415682]
[1744272919790,0.24476543,81725.0,81722.0,0.24473]
[1744272919982,0.24476543,81725.0,81723.0,0.12055382]
[1744272920281,0.00755494,81724.0,81723.0,0.36528282]
[1744272921180,0.00755494,81724.0,81723.0,0.37751882]
[1744272921412,0.00755494,81724.0,81723.0,0.47011882]
[1744272923392,0.26451694,81724.0,81723.0,0.12055382]
[1744272923823,0.00755494,81724.0,81723.0,0.27427382]
[1744272923997,0.00755494,81724.0,81723.0,0.53123882]
[1744272924214,4.243e-05,81725.0,81724.0,0.256962]
[1744272924425,4.243e-05,81725.0,81724.0,0.37996282]
[1744272924624,4.243e-05,81725.0,81724.0,0.37751582]
[1744272926639,4.243e-05,81725.0,81724.0,0.42691582]
[1744272932894,4.243e-05,81725.0,81724.0,0.48815667]
[1744272933925,4.243e-05,81725.0,81724.0,0.50046752]
[1744272934134,4.243e-05,81725.0,81724.0,0.47361582]
[1744272934558,4.243e-05,81725.0,81724.0,0.62729582]
[1744272937260,4.243e-05,81725.0,81724.0,0.64183667]
[1744272938022,4.243e-05,81725.0,81724.0,1.01968687]
[1744272938303,0.40959861,81752.0,81751.0,0.303677]
[1744272938545,0.0001686,81757.0,81756.0,0.256861]
[1744272938779,0.0001686,81757.0,81756.0,0.12055382]
[1744272938780,0.24483806,81757.0,81756.0,0.12055382]
[1744272939031,0.00021106,81757.0,81747.0,0.012232]
[1744272939262,0.00021106,81757.0,81752.0,0.256872]
[1744272939504,0.24483806,81757.0,81753.0,0.12055382]
[1744272939734,0.24483806,81757.0,81753.0,0.36518982]
[1744272939937,0.00021106,81757.0,81755.0,0.012231]
[1744272940166,0.00021106,81757.0,81756.0,0.36518382]
[1744272940372,0.00021106,81757.0,81756.0,0.12055382]
[1744272941671,0.24483806,81757.0,81756.0,0.12055382]
[1744272942194,0.00021106,81757.0,81756.0,0.12055382]
[1744272942428,0.00021106,81757.0,81756.0,0.37741482]
[1744272942631,0.00021106,81757.0,81756.0,0.12055382]
[1744272942831,0.00021106,81757.0,81756.0,0.36518382]
[1744272943445,0.00021106,81757.0,81756.0,0.37741482]
[1744272944373,0.0081095,81757.0,81756.0,0.37741482]
[1744272944617,0.00021106,81757.0,81756.0,0.37741482]
[1744272945083,0.00021106,81757.0,81756.0,0.36518382]
[1744272945549,0.00021106,81757.0,81756.0,0.57382467]
[1744272946554,0.00021106,81757.0,81756.0,0.32919467]
[1744272949091,0.00021106,81757.0,81756.0,0.48263467]
[1744272949781,0.00021106,81757.0,81756.0,0.82263467]
[1744272950003,0.00021106,81757.0,81756.0,0.86041812]
[1744272952460,0.00021106,81757.0,81756.0,0.86037812]
[1744272954415,0.00021106,81757.0,81756.0,0.82259467]
[1744272954612,0.00021106,81757.0,81756.0,0.80805382]
[1744272955779,0.00021106,81757.0,81756.0,0.46805382]
[1744272955926,0.00021106,81757.0,81756.0,0.27395382]
[1744272956959,0.00021106,81757.0,81756.0,0.28849467]
[1744272958093,0.00021106,81757.0,81756.0,0.72049467]
[1744272959258,0.00021106,81757.0,81756.0,0.75824642]
[1744272960115,0.00021106,81757.0,81756.0,0.72049467]
[1744272962993,0.00021106,81757.0,81756.0,0.75823384]
[1744272963875,0.00021106,81757.0,81756.0,0.86323384]
[1744272964239,0.00021106,81757.0,81756.0,0.76323384]
[1744272965058,0.00021106,81757.0,81756.0,0.75823384]
[1744272965263,0.00021106,81757.0,81756.0,0.76323384]
[1744272965479,0.00021106,81757.0,81756.0,0.60983384]
[1744272965683,0.00021106,81757.0,81756.0,0.76323384]
[1744272966059,0.00021106,81757.0,81756.0,0.75823384]
[1744272968935,0.00021106,81757.0,81756.0,0.32623384]
[1744272969215,0.00021106,81757.0,81756.0,0.28849467]
[1744272969415,0.00021106,81757.0,81756.0,0.27395382]
[1744272974171,0.00021106,81757.0,81756.0,0.12055382]
[1744272974376,0.00021106,81757.0,81756.0,0.27395382]
[1744272977306,0.00021106,81757.0,81756.0,0.52214536]
[1744272978301,0.00021106,81757.0,81756.0,0.86214536]
[1744272978501,0.00021106,81757.0,81756.0,0.76634536]
[1744272978705,0.00021106,81757.0,81756.0,0.42634536]
[1744272978904,0.00021106,81757.0,81756.0,0.28849467]
[1744272979072,0.00021106,81757.0,81756.0,0.28833467]
[1744272979453,0.00021106,81757.0,81756.0,0.27379382]
[1744272982651,0.00021106,81757.0,81756.0,0.15324]
[1744272982934,0.04951106,81757.0,81756.0,0.15324]
[1744272983258,0.05580506,81757.0,81756.0,0.15324]
[1744272983454,0.0482,81756.0,81733.0,0.10932044]
[1744272983695,0.40959861,81755.0,81751.0,0.15324]
[1744272984109,0.00628595,81754.0,81751.0,0.15324]
[1744272984807,0.01829252,81754.0,81751.0,0.15324]
[1744272985432,0.00628595,81754.0,81751.0,0.15324]
[1744272985630,0.00628595,81754.0,81752.0,0.12055382]
[1744272986098,0.00628595,81754.0,81751.0,0.15324]
[1744272986099,0.00628595,81754.0,81753.0,0.13509467]
[1744272986299,0.00021106,81757.0,81753.0,0.13509467]
[1744272986500,0.00021106,81757.0,81756.0,0.12055382]
[1744272990409,0.00021106,81757.0,81756.0,1.37915382]
[1744272991182,0.00021106,81757.0,81756.0,1.53239382]
[1744272992458,0.00021106,81757.0,81756.0,1.54693467]
[1744272992663,0.00021106,81757.0,81756.0,1.59403467]
[1744272993097,0.00021106,81757.0,81756.0,1.44079467]
[1744272993296,0.00021106,81757.0,81756.0,1.59403467]
[1744272993558,0.00021106,81757.0,81756.0,1.93403467]
[1744272993717,0.00021106,81757.0,81756.0,2.01823096]
[1744272999397,0.00021106,81757.0,81756.0,1.53239382]
[1744273018992,0.04921106,81757.0,81756.0,1.41184]
[1744273019615,0.06064391,81757.0,81756.0,1.41184]
[1744273019858,0.06064391,81757.0,81756.0,1.53239382]
[1744273019859,0.03451038,81757.0,81756.0,1.53239382]
[1744273020151,0.01164391,81757.0,81756.0,1.53239382]
[1744273021058,0.3882,81756.0,81744.0,0.15304]
[1744273021265,0.17462042,81750.0,81745.0,0.15304]
[1744273021463,0.00627774,81755.0,81746.0,0.15304]
[1744273021652,0.79779861,81756.0,81747.0,0.15304]
[1744273021653,0.00626164,81749.0,81747.0,0.15304]
[1744273021840,0.0452,81752.0,81748.0,0.15304]
[1744273022003,0.00626701,81751.0,81749.0,0.15304]
[1744273022204,0.40959861,81750.0,81733.0,0.12055382]
[1744273022406,0.00626164,81749.0,81734.0,0.15304]
[1744273022603,0.00626164,81749.0,81735.0,0.12055382]
[1744273022811,0.17462042,81745.0,81724.0,0.10932044]
[1744273023011,0.17462042,81734.0,81725.0,0.12055382]
[1744273023214,0.10186854,81733.0,81724.0,0.10932044]
[1744273023869,0.74959861,81732.0,81724.0,0.10932044]
[1744273024251,0.0175854,81731.0,81724.0,0.10932044]
[1744273024569,0.02281145,81730.0,81724.0,0.10932044]
[1744273024953,0.00611596,81729.0,81725.0,0.12055382]
[1744273025152,0.00611596,81729.0,81726.0,0.15308]
[1744273025330,0.00611596,81729.0,81727.0,0.12055382]
[1744273025541,0.40959861,81732.0,81727.0,0.12055382]
[1744273025746,0.00511073,81728.0,81727.0,0.12055382]
[1744273026146,0.0487,81731.0,81726.0,0.15308]
[1744273026377,0.00513996,81728.0,81726.0,0.15308]
[1744273026614,0.3887,81731.0,81726.0,0.15308]
[1744273026862,0.0051393,81727.0,81726.0,0.15308]
[1744273027061,0.34,81731.0,81726.0,0.27363382]
[1744273027207,0.40959861,81732.0,81727.0,0.12055382]
[1744273029283,0.40959861,81732.0,81728.0,0.15308]
[1744273029553,0.40959861,81732.0,81729.0,0.15308]
[1744273029754,0.40959861,81732.0,81730.0,0.15308]
[1744273029958,0.40959861,81732.0,81731.0,0.15308]
[1744273030843,0.74959861,81732.0,81731.0,0.15308]
[1744273031985,0.74959861,81732.0,81731.0,0.27363382]
[1744273033669,0.74959861,81732.0,81731.0,0.15308]
[1744273034847,0.74959861,81732.0,81731.0,0.27363382]
[1744273036670,0.74959861,81732.0,81731.0,0.15308]
[1744273037203,0.34,81731.0,81715.0,1.25868243]
[1744273037357,0.34,81729.0,81716.0,0.12055382]
[1744273037572,0.34,81729.0,81717.0,0.15312]
[1744273037766,0.34,81729.0,81718.0,0.12055382]
[1744273039246,0.34,81727.0,81719.0,0.12055382]
[1744273039490,0.34,81727.0,81719.0,0.27367382]
[1744273039710,0.40959861,81728.0,81719.0,0.27367382]
[1744273039940,0.40959861,81728.0,81720.0,0.048]
[1744273040171,0.40959861,81728.0,81721.0,0.12055382]
[1744273040569,0.40959861,81728.0,81721.0,0.12300103]
[1744273042887,0.40959861,81739.0,81721.0,0.12300103]
[1744273043361,0.00506711,81738.0,81721.0,0.12300103]
[1744273044183,0.00506711,81738.0,81734.0,0.244694]
[1744273044392,0.00506711,81738.0,81736.0,0.24469]
[1744273044602,0.00506711,81738.0,81737.0,0.27351382]
[1744273044769,0.40959861,81739.0,81737.0,0.27351382]
[1744273046192,0.40959861,81739.0,81738.0,0.244684]
[1744273046419,0.40959861,81739.0,81738.0,0.36523782]
[1744273046981,0.40959861,81739.0,81738.0,0.41453782]
[1744273049553,0.0001686,81757.0,81756.0,0.24463]
[1744273049730,0.0001686,81757.0,81756.0,0.51810382]
[1744273050736,0.00021106,81757.0,81756.0,0.51810382]
[1744273053252,0.00021106,81757.0,81756.0,0.27347382]
[1744273053858,0.00021106,81757.0,81756.0,0.12055382]
[1744273054358,0.00021106,81757.0,81756.0,0.27347382]
[1744273054702,0.00544908,81757.0,81756.0,0.27347382]
[1744273058101,0.00021106,81757.0,81756.0,0.27347382]
[1744273059141,0.00544908,81757.0,81756.0,0.27347382]
[1744273061013,0.00021106,81757.0,81756.0,0.27347382]
[1744273062389,0.00021106,81757.0,81756.0,0.51810382]
[1744273062606,0.00021106,81757.0,81756.0,0.27347382]
[1744273062798,0.00021106,81757.0,81756.0,0.15292]
[1744273063006,0.00544908,81757.0,81756.0,0.15292]
[1744273063447,0.00544908,81757.0,81753.0,1.25908]
[1744273063448,0.0462,81756.0,81753.0,1.25908]
[1744273063692,0.0462,81756.0,81754.0,0.15288]
[1744273063693,0.00521368,81755.0,81754.0,0.15288]
[1744273063871,0.34,81754.0,81753.0,1.25908]
[1744273064075,0.345211,81754.0,81753.0,1.25908]
[1744273064279,0.75480961,81754.0,81749.0,0.15288]
[1744273064448,0.34,81753.0,81749.0,0.15288]
[1744273064852,0.01653255,81752.0,81749.0,0.15288]
[1744273065050,0.02508619,81752.0,81729.0,0.24471]
[1744273065385,0.17462042,81750.0,81730.0,0.27343382]
[1744273065547,0.17462042,81740.0,81730.0,0.27343382]
[1744273066335,0.17462042,81740.0,81730.0,0.51813982]
[1744273067407,0.17462042,81750.0,81730.0,0.51813982]
[1744273067779,0.00516328,81749.0,81730.0,0.51813982]
[1744273067981,0.01140969,81748.0,81732.0,0.244701]
[1744273068161,0.01140969,81748.0,81736.0,0.24469]
[1744273068361,0.00515792,81747.0,81738.0,0.244683]
[1744273068611,0.01140969,81748.0,81747.0,0.256889]
[1744273068856,0.01140969,81748.0,81747.0,0.37744282]
[1744273068969,0.40959861,81751.0,81750.0,0.25688]
[1744273069178,0.40959861,81751.0,81750.0,0.37743382]
[1744273071959,0.40959861,81751.0,81750.0,0.36520182]
[1744273072262,0.40959861,81751.0,81750.0,0.27331382]
[1744273073786,0.40959861,81751.0,81750.0,0.15276]
[1744273073986,0.40959861,81751.0,81741.0,0.012233]
[1744273074222,0.5894038,81751.0,81750.0,0.3]
[1744273074398,0.40959861,81751.0,81750.0,0.3]
[1744273074607,0.41478338,81751.0,81750.0,0.3]
[1744273075744,0.75478338,81751.0,81750.0,0.3]
[1744273075943,0.76335446,81751.0,81750.0,0.45276]
[1744273076146,0.83675446,81751.0,81750.0,0.45276]
[1744273076351,0.76335446,81751.0,81750.0,0.45276]
[1744273076748,0.77478328,81751.0,81750.0,0.45276]
[1744273077510,0.77478328,81751.0,81750.0,0.3]
[1744273077511,1.13986087,81751.0,81750.0,0.3]
[1744273077714,0.89521587,81751.0,81750.0,0.3]
[1744273077888,1.15209287,81751.0,81750.0,0.3]
[1744273078067,1.20159287,81751.0,81750.0,0.3]
[1744273078276,1.39554669,81751.0,81750.0,0.3]
[1744273079402,1.2751141,81751.0,81750.0,0.3]
[1744273079768,0.012233,81744.0,81736.0,0.15276]
[1744273079974,0.03141392,81743.0,81736.0,0.15276]
[1744273080220,0.03141392,81743.0,81728.0,0.15276]
[1744273080221,0.012234,81734.0,81728.0,0.15276]